Cogmind - Beta 14 @@@ ROGUE MODE // 2024.11.14 @ 23:05:47 Player: BEEEEES Result: Self-destructed Performance ------------- Evolutions (2) 1000 Regions Visited (3) 600 Robots Destroyed (30) 150 Value Destroyed (812) 812 Prototype IDs (0) 0 Alien Tech Used (0) 0 Bonus (0) 0 TOTAL SCORE: 2562 Bonus ------- None Cogmind --------- Core Integrity 90/550 Matter 300/300 Energy 100/100 System Corruption 1% Temperature Cool (0) Movement Core (50) Location -8/Materials Parts ------- > --- POWER (1) -------- (None) > --- PROPULSION (3) --- (None) > --- UTILITY (3) ------ Signal Interpreter > --- WEAPON (4) ------- (None) > --- INVENTORY (5) ---- Wheel Wheel Wheel Wheel Peak State ------------ > --- POWER ------------ Light Ion Engine > --- PROPULSION ------- Titanium Leg Titanium Leg Titanium Leg > --- UTILITY ---------- Medium Storage Unit Signal Interpreter > --- WEAPON ----------- Particle Gun Light EM Pulse Cannon Improved Datajack > --- INVENTORY -------- Aluminum Leg Aluminum Leg Titanium Leg Wheel Wheel Wheel Wheel [Rating: 19] Favorites ----------- Power Light Ion Engine Engine Light Ion Engine Propulsion Aluminum Leg Leg Aluminum Leg Utility Medium Storage Unit Device Terrain Scanner Storage Medium Storage Unit Processor Signal Interpreter Weapon Assault Rifle Energy Gun Small Laser Energy Cannon Light EM Pulse Cannon Ballistic Gun Assault Rifle Ballistic Cannon Improved Light Cannon Launcher Grenade Launcher Special Melee Weapon Improved Datajack Build | -11 -10 -9 -8 ------- Run | Yrd Mat Mat Mat Slots Evolved 4 | . . 2 2 Power . | . . . . Propulsion 1 | . . . 1 Utility 1 | . . . 1 Weapon 2 | . . 2 . Parts Attached 36 | 6 4 18 8 Power 5 | 1 1 2 1 Engine 5 | 1 1 2 1 Core . | . . . . Reactor . | . . . . Propulsion 11 | 2 1 4 4 Treads . | . . . . Leg 11 | 2 1 4 4 Wheel . | . . . . Hover . | . . . . Flight . | . . . . Utility 4 | 1 2 1 . Device 1 | . 1 . . Storage 2 | 1 1 . . Processor 1 | . . 1 . Hackware . | . . . . Protection . | . . . . Artifact . | . . . . Weapon 16 | 2 . 11 3 Energy Gun 5 | . . 3 2 Energy Cannon 2 | . . 2 . Ballistic Gun 4 | 2 . 2 . Ballistic Cannon 2 | . . 2 . Launcher 2 | . . 2 . Special Weapon . | . . . . Impact Weapon . | . . . . Slashing Weapon . | . . . . Piercing Weapon . | . . . . Special Melee Weapon 1 | . . . 1 Unidentified Prototypes . | . . . . Parts Lost 24 | . 1 10 13 Power 4 | . 1 1 2 Propulsion 8 | . . 2 6 Utility 2 | . . 1 1 Weapon 10 | . . 6 4 Highest Loss Streak 9 | . 1 9 8 To Critical Strikes . | . . . . Average Slot Usage (%) 78 | . 91 78 66 Engine 8 | . 11 7 5 Leg 22 | . 28 17 22 Device 5 | . 7 7 . Storage 11 | . 14 11 9 Processor 3 | . . . 9 Energy Gun 6 | . . 7 11 Energy Cannon 1 | . . 3 1 Ballistic Gun 13 | . 28 14 . Ballistic Cannon 2 | . . 6 . Special Melee Weapon 2 | . . . 6 Peak Build Rating 19 | 6 7 14 19 Average Rating 9 | 5 6 9 15 On Entrance 6 | . 6 7 14 Naked Turns . | . . . . Heaviest Build 25 | 12 20 25 25 Greatest Support 51 | 20 20 34 51 Greatest Overweight (x) 5 | 1 . 5 1 Average Overweight (x) . | . . 1 . Largest Inventory Capacity 10 | 8 10 10 10 Average Capacity 9 | 7 9 10 9 Most Carried 10 | 4 9 10 7 Average Carried 7 | 2 7 8 6 Final Capacity 10 | 8 10 10 5 Final Carried 8 | 4 8 8 4 Class Distribution -------------------- 76% | Mutant 23% | Skirmisher Dominant Class ---------------- Mutant | -10/Materials Skirmisher | -9/Materials Mutant | -8/Materials Resources | -11 -10 -9 -8 ----------- Run | Yrd Mat Mat Mat Matter Collected 802 | 206 197 281 118 Remotely . | . . . . Salvage Created 712 | . 184 355 173 Parts 49 | . 17 29 3 Haulers Intercepted 2 | . . 2 . Recyclers Shooed . | . . . . Parts Field Recycled . | . . . . Retrieved Matter . | . . . . Parts Self-Destructed . | . . . . Prevented . | . . . . Kills | -11 -10 -9 -8 ------- Run | Yrd Mat Mat Mat Combat Hostiles Destroyed 21 | . 6 10 5 Guns 10 | . 6 2 2 Cannons 1 | . . 1 . AOE 9 | . . 7 2 Classes Destroyed 9 | . 3 4 2 Worker 3 | . . 3 . Builder 2 | . . 2 . Hauler 2 | . . 2 . Watcher 2 | . 1 1 . Swarmer 3 | . 3 . . Grunt 15 | . 3 9 3 Brawler 1 | . . . 1 Duelist 1 | . . 1 . Sentry 1 | . . . 1 Best Kill Streak 8 | . 4 8 3 Combat Bots Only 4 | . 3 4 3 Max Kills in Single Turn 3 | . 1 3 2 Gunslinging . | . . . . Exploded 2 | . . 2 2 Melee . | . . . . Uniques/NPCs Destroyed . | . . . . Combat | -11 -10 -9 -8 -------- Run | Yrd Mat Mat Mat Hostile Shots Fired 255 | . 35 96 124 Missed 71 | . 11 26 34 Damage Taken 3033 | . 260 1202 1571 Core 815 | . 63 292 460 Absorbed by Shields . | . . . . Core Remaining (%) 67 | 100 74 27 . Volleys Fired 81 | . 18 27 36 Largest 4 | . 2 4 2 Hottest 119 | . 40 119 86 Shots Fired 142 | . 36 63 43 Gun 114 | . 36 35 43 Cannon 18 | . . 18 . Launcher 10 | . . 10 . Special . | . . . . Kinetic 71 | . 36 35 . Thermal 57 | . . 14 43 Explosive 10 | . . 10 . Electromagnetic 4 | . . 4 . Robot Hit Streak 16 | . 3 9 16 Robot Miss Streak 4 | . 3 4 4 Penetration Max . | . . . . Secondary Targets 2 | . 2 . . Max Gunslinging Chain 1 | . 1 . . Shots Hit Robots 86 | . 14 38 34 Core Hits 45 | . 11 23 11 Critical Kills . | . . . . Critical Parts Destroyed 1 | . . 1 . Critical Strikes 3 | . . 2 1 Burn 1 | . . . 1 Destroy 1 | . . 1 . Blast 1 | . . 1 . Melee Attacks 1 | . . . 1 Impact . | . . . . Slashing . | . . . . Piercing . | . . . . Sneak Attacks . | . . . . Combat Hostiles . | . . . . Follow-up Attacks . | . . . . Damage Inflicted 2027 | . 177 1159 691 Guns 810 | . 177 249 384 Cannons 231 | . . 231 . Explosions 986 | . . 679 307 Melee . | . . . . Ramming . | . . . . Kinetic 490 | . 177 313 . Thermal 483 | . . 99 384 Explosive 986 | . . 679 307 Electromagnetic 68 | . . 68 . Impact . | . . . . Slashing . | . . . . Piercing . | . . . . Highest Corruption 1 | . . . 1 Average Corruption 1 | . . . 1 Corruption Purged . | . . . . Corruption Blocked . | . . . . Effects 1 | . . . 1 Heat Flow Errors 1 | . . . 1 Overload Shots . | . . . . Overflow Damage 42 | . . 42 . Projectiles . | . . . . Explosions 42 | . . 42 . Melee . | . . . . Knockbacks 5 | . . 5 . Impact . | . . . . Kinetic 5 | . . 5 . Secondary . | . . . . Self-Inflicted Damage 362 | . . 249 113 Shots 9 | . . 8 1 Rammed . | . . . . Targets Rammed . | . . . . Kicked . | . . . . Crushed . | . . . . Highest Temperature 286 | . 39 236 286 Average Temperature 98 | . 15 95 112 Received Heat Transfer 1248 | . 120 372 756 Effects 2 | . . 1 1 Energy Bleed 2 | . . 1 1 Siege Activations . | . . . . Robots Corrupted . | . . . . Combat Hostiles . | . . . . Parts Fried 1 | . . 1 . Impact Corruptions . | . . . . Robots Melted 1 | . . . 1 Combat Hostiles 1 | . . . 1 Parts Melted 1 | . . . 1 Heat Transferred 1520 | . . 225 1295 Parts Sabotaged . | . . . . Parts Stolen . | . . . . Parts Stripped . | . . . . Power Chain Reactions . | . . . . Alert | -11 -10 -9 -8 ------- Run | Yrd Mat Mat Mat Peak Influence 244 | . 122 244 243 Initial 51 | . . 51 50 Average 105 | . 43 106 183 Maximum Alert Level 1 | . . 1 1 Low Security (%) 74 | 100 100 84 35 Level 1 25 | . . 15 64 Level 2 . | . . . . Level 3 . | . . . . Level 4 . | . . . . Level 5 . | . . . . High Security . | . . . . Max Security . | . . . . Squads Dispatched 3 | . 1 1 1 Investigation 1 | . 1 . . Extermination . | . . . . Reinforcement 2 | . . 1 1 Assault . | . . . . Garrison . | . . . . Intercept . | . . . . Searches Triggered . | . . . . Construction Impeded 1 | . . 1 . Haulers Reinforced . | . . . . Active Scanning Responses . | . . . . Cargo Convoy Interrupts . | . . . . Stealth | -11 -10 -9 -8 --------- Run | Yrd Mat Mat Mat Distress Signals 1 | . . . 1 Communications Jammed . | . . . . Distress Signals . | . . . . Times Spotted 37 | . 11 12 14 Peak Tracking Total 6 | . 3 5 6 Tactical Retreats 4 | . . . 4 Traps | -11 -10 -9 -8 ------- Run | Yrd Mat Mat Mat Traps Triggered 5 | . 1 3 1 Indirectly . | . . . . Trap Hack Attempts . | . . . . Triggered . | . . . . Disarmed . | . . . . Reprogrammed . | . . . . Reused . | . . . . Traps Extracted . | . . . . Installed . | . . . . Triggered . | . . . . Machines | -11 -10 -9 -8 ---------- Run | Yrd Mat Mat Mat Machines Disabled 3 | . . 1 2 Max in Single Turn 2 | . . 1 2 Machines Repaired . | . . . . Machines Dismantled . | . . . . Machines Sabotaged . | . . . . Overloaded Fab Kills . | . . . . Hacking | -11 -10 -9 -8 --------- Run | Yrd Mat Mat Mat Machines Accessed 4 | . 2 1 1 Terminals 3 | . 2 1 . Fabricators . | . . . . Repair Stations 1 | . . . 1 Recycling Units . | . . . . Scanalyzers . | . . . . Garrison Access . | . . . . Total Hacks 9 | . 5 2 2 Successful 8 | . 4 2 2 Failed 1 | . 1 . . Catastrophic . | . . . . Database Lockouts . | . . . . Manual . | . . . . Terminals 7 | . 5 2 . Fabricators . | . . . . Repair Stations 2 | . . . 2 Recycling Units . | . . . . Scanalyzers . | . . . . Garrison Access . | . . . . Terminal Hacks 6 | . 4 2 . Unreport Threat 1 | . 1 . . Locate Traps 1 | . 1 . . Reinforcement Status 1 | . . 1 . Hauler Manifests 1 | . 1 . . Zone Layout 2 | . 1 1 . Fabricator Hacks . | . . . . Repair Station Hacks 2 | . . . 2 Scan Component 1 | . . . 1 Repair 1 | . . . 1 Recycling Unit Hacks . | . . . . Scanalyzer . | . . . . Garrison Access Hacks . | . . . . Unauthorized Hacks . | . . . . Terminals . | . . . . Fabricators . | . . . . Repair Stations . | . . . . Recycling Units . | . . . . Scanalyzers . | . . . . Garrison Access . | . . . . Data Cores Recovered . | . . . . Used . | . . . . Hacking Detections 1 | . . 1 . Full Trace Events . | . . . . Feedback Events . | . . . . Feedback Blocked . | . . . . Robot Schematics Acquired . | . . . . Robots Built . | . . . . Authchips . | . . . . Time . | . . . . Total Robot Build Rating . | . . . . Part Schematics Acquired . | . . . . Parts Built . | . . . . Authchips . | . . . . Time . | . . . . Total Part Build Rating . | . . . . Parts Repaired . | . . . . Time 32 | . . . 32 Parts Recycled . | . . . . Recycled Matter . | . . . . Retrieved Matter . | . . . . Retrieved Components . | . . . . Parts Scanalyzed . | . . . . Part Schematics Acquired . | . . . . Parts Damaged . | . . . . Bothacking | -11 -10 -9 -8 ------------ Run | Yrd Mat Mat Mat Used RIF Installer . | . . . . Robots Hacked 1 | . . . 1 Non-combat . | . . . . Combat 1 | . . . 1 Robot Hacks Applied 1 | . . . 1 parse_system 1 | . . . 1 Relay Couplers Released . | . . . . Fabnet Peak Effective % . | . . . . Robots Rewired . | . . . . Allies Hacked . | . . . . Hacks Repelled . | . . . . Allies | -11 -10 -9 -8 -------- Run | Yrd Mat Mat Mat Total Allies . | . . . . Largest Group . | . . . . Highest-Rated Group . | . . . . Highest-Rated Ally . | . . . . Total Orders . | . . . . Ally Attacks . | . . . . Total Damage . | . . . . Kills . | . . . . Allies Corrupted . | . . . . Allies Melted . | . . . . Intel | -11 -10 -9 -8 ------- Run | Yrd Mat Mat Mat Robot Analysis Total . | . . . . Derelict Logs Recovered . | . . . . Drone Launches . | . . . . Drone Recoveries . | . . . . Exploration | -11 -10 -9 -8 ------------- Run | Yrd Mat Mat Mat Turns Passed 1254 | 68 370 434 382 Spaces Moved 681 | 51 254 170 206 Core 28 | 8 . 18 2 Treads . | . . . . Legs 653 | 43 254 152 204 Wheels . | . . . . Hover . | . . . . Flight . | . . . . Fastest Speed 50 | 50 120 120 50 Average Speed 139 | 110 120 188 131 Slowest Speed 300 | 120 120 300 200 Overloaded Moves . | . . . . Propulsion Burnouts . | . . . . Robots Hopped . | . . . . Cave-ins Triggered . | . . . . Exploration Rate (%) 21 | 3 48 17 17 Regions Visited 3 Branch Regions . Pre-discovered Areas . | . . . . Known Exits Taken 1 | . . 1 . Unknown Exits Taken 2 | 1 1 . . Scrap Searched . | . . . . Spaces Dug . | . . . . Terrain Destroyed 91 | . . 61 30 Melee . | . . . . Projectile . | . . . . AOE 91 | . . 61 30 Terrain Rammed . | . . . . Walls Destroyed . | . . . . Machines Disabled . | . . . . Actions | -11 -10 -9 -8 --------- Run | Yrd Mat Mat Mat Total 843 | 60 282 230 271 Wait 31 | . . 11 20 Move 678 | 50 253 169 206 Hop . | . . . . Pick Up 13 | 4 5 4 . Fast Attach 23 | 6 2 11 4 Attach 11 | . 1 6 4 Detach 1 | . . 1 . Swap 2 | . 1 1 . Drop 2 | . 2 . . Fire 81 | . 18 27 36 Melee 1 | . . . 1 Ram . | . . . . Kick . | . . . . Crush . | . . . . Escape Stasis . | . . . . Rewire . | . . . . Trap . | . . . . Miscellaneous . | . . . . Route ------- -11/Scrapyard -10/Materials (discovered 2 exits: *Mat / [*Min]) -9/Materials -8/Materials History --------- Turn | Location | Event 5 | -11/Scrapyard | Discovered new exit (range 14) 69 | -11/Scrapyard | Entered Materials 301 | -10/Materials | Build established: Mutant 351 | -10/Materials | Discovered new exit (range 9) 427 | -10/Materials | Discovered new exit (range 11) 439 | -10/Materials | Entered another Materials area 439 | -9/Materials | Evolved 2 slots: Weapon x2 767 | -9/Materials | Core integrity fell below 50% 770 | -9/Materials | Discovered new exit (range 8) 777 | -9/Materials | Lost 9 parts (1p2n1u5w) 872 | -9/Materials | Identified exit to Materials 873 | -9/Materials | Entered another Materials area 873 | -8/Materials | Evolved 2 slots: Propulsion x1, Utility x1 1187 | -8/Materials | Core integrity fell below 50% 1237 | -8/Materials | Lost 8 parts (1p4n3w) 1251 | -8/Materials | Core integrity fell below 20% 1255 | -8/Materials | Self-destructed Last Messages --------------- Backup Laser I destroyed. Aluminum Leg destroyed. Electrolysis Chamber disabled. Rnf. Ion Engine destroyed. Critical hit (Burn: +37). Acquired 20 matter. U-05 Engineer works on Matter Pump. K-01 Serf cleans the Terminal. U-05 Engineer works on Matter Pump. Aluminum Leg destroyed. K-01 Serf cleans the Terminal. U-05 Engineer works on Matter Pump. K-01 Serf cleans the Terminal. U-05 Engineer works on Matter Pump. Critical hit (Burn: +37). K-01 Serf collects debris. Med. Storage Unit destroyed. W-25 Informer sends out distress signal. Titanium Leg destroyed. Critical hit (Blast). Map ----- +----------------------------------------------------+ | ?????????????# !!! # #????????????# | | ?????????????# !! # #????##??????# | | ?????????????# # #???? ??????# | | ?????????????# # #???? ?????## ####### | | ?????????????########## #???" """??? #???? | | ??????????????????????# #???" ""??## #????+ | | ??????????????????????# #???" ""??? ?????? | | ??????????????????????# #??? ??## ?????? | | ??????????????????????# #??? ????# ?????? | | ??????????????????????# #??? ????# #????? | | ??????????????????????# #??##+######## ########? | | ??????????????????????# #??# #### # #? | | ??????????????????????# #### /% """#? | | ??????????????????????# #### # """#? | | ??????????????????????# #??# #= "#? | | ??????????????????????# """"" g #??# #% #? | | ??????????????????????# ""T""g g##/####+# #? | | ??????????????????????+ # ###/####? | | ??????????????????????# # #?# #???? | | ??????????????????????# # #?# #???? | | ??????????????????????# # #?# #???? | | ??????????????????????# + #?###???? | | ???????????############% # #???????? | | ?????????? wk # #???????? | | ???????H?? k # #???????? | | ?????????? @% # #???????? | | ???????????############ <<< # #???????? | | ??????????????????????# u<< # #???????? | | ??????????????????????# << k #########???????? | | ??????????????????????# k??????????????? | | ??????????????????????# ?????????????? | | ??????????????????????# """ ???????????? | | ??????????????????????# """ a######???????????? | | ??????????????????????# """ #????????????????? | | ??????????????????????# ? #????????????????? | | ??????????????????????# ?? #????????????????? | | ??????????????????????# ??? ??????????????????? | | ??????????????????????# ??????????????????????? | | ??????????????????????# ??????????????????????? | | ?????????????????????? ???????????????????????? | | ??????????????????????? ???????????????????????? | | ?????????????????????????????????????????????????? | | ?????????????????????????????????????????????????? | | ?????????????????????????????????????????????????? | | ?????????????????????????????????????????????????? | | ?????????????????????????????????????????????????? | | ?????????????????????????????????????????????????? | | ?????????????????????????????????????????????????? | | ?????????????????????????????????????????????????? | | ?????????????????????????????????????????????????? | +----------------------------------------------------+ Best States ------------- Heat Dissipation 31 Energy Generation 12 Energy Capacity 265 Matter Stores 300 Matter Capacity 300 Sight Range 16 Terrain Scan Range 14 Terrain Scan Density 10 Evasion (%) 55 Item Schematics ----------------- None Robot Schematics ------------------ None Fabricated ------------ Nothing Alien Tech Used ----------------- None Achievements -------------- None Challenges ------------ None Game ------ Seed RefineryTerrainProjector Manual? 0 Play Time 00:22:15 Cumulative 6.3 hours Start 2024.11.14 @ 22:47:03 End 2024.11.14 @ 23:05:47 Sessions 1 Manual Loads 0 Difficulty Rogue Special Mode None Game No. 14 Rogue 11 Adventurer 3 Explorer 0 Win Type - Total 0 Types 0/0/0/0/0/0/0/0/0 Lore% 3 Gallery% 12 Achievement% 10 Wizard Run 0 Options --------- Layout 1 ASCII 0 Keyboard 0 Movement Mouse Keybinds 0 Fullscreen 1 Font 48/Terminus Map View 50x35 Zoom Use 0% Tactical HUD 0 Map Filters NONE Filters NONE Steam 1 RUN: 741ef17b-d28d-43d3-8986-cf087e38df98